[Event "Titled Tuesday Blitz November 15 Early 2022"]
[White "Taboas Rodriguez, Daniel"]
[Black "Sanchez, Robert"]
[WhiteFideId "2208466"]
[BlackFideId "2034360"]
[WhiteElo "2329"]
[BlackElo "2309"]
[Result "1-0"]
[Round "06"]
[TimeControl "180+1"]
[Date "2022.11.16"]
[WhiteClock "0:00:29"]
[BlackClock "0:00:17"]

1. d4 {[%clk 0:03:00]}  d5 {[%clk 0:03:00]} 2. Nf3 {[%clk 0:02:58]}  e6 {[%clk 0:03:00]} 3. c4 {[%clk 0:02:59]}  Nf6 {[%clk 0:03:00]} 4. Bg5 {[%clk 0:02:59]}  Be7 {[%clk 0:03:00]} 5. e3 {[%clk 0:03:00]}  O-O {[%clk 0:03:00]} 6. Nc3 {[%clk 0:03:00]}  c6 {[%clk 0:03:01]} 7. Bd3 {[%clk 0:03:00]}  Nbd7 {[%clk 0:03:02]} 8. O-O {[%clk 0:03:00]}  b6 {[%clk 0:03:02]} 9. Qe2 {[%clk 0:02:59]}  Bb7 {[%clk 0:03:02]} 10. Rac1 {[%clk 0:02:59]}  h6 {[%clk 0:03:00]} 11. Bh4 {[%clk 0:02:58]}  dxc4 {[%clk 0:02:58]} 12. Bxc4 {[%clk 0:02:58]}  c5 {[%clk 0:02:58]} 13. Rfd1 {[%clk 0:02:59]}  cxd4 {[%clk 0:02:58]} 14. Nxd4 {[%clk 0:02:59]}  Nd5 {[%clk 0:02:35]} 15. Bxd5 {[%clk 0:02:54]}  exd5 {[%clk 0:02:32]} 16. Bxe7 {[%clk 0:02:54]}  Qxe7 {[%clk 0:02:32]} 17. Nf5 {[%clk 0:02:41]}  Qe6 {[%clk 0:02:21]} 18. Nxd5 {[%clk 0:02:39]}  Bxd5 {[%clk 0:02:22]} 19. Rxd5 {[%clk 0:02:40]}  Nf6 {[%clk 0:02:22]} 20. Rb5 {[%clk 0:02:34]}  a6 {[%clk 0:02:15]} 21. Nd4 {[%clk 0:02:33]}  Qxa2 {[%clk 0:02:15]} 22. Rxb6 {[%clk 0:02:33]}  Rfe8 {[%clk 0:02:15]} 23. h3 {[%clk 0:02:26]}  Nd5 {[%clk 0:02:07]} 24. Rd6 {[%clk 0:02:23]}  a5 {[%clk 0:01:48]} 25. Qc4 {[%clk 0:02:13]}  Qxc4 {[%clk 0:01:37]} 26. Rxc4 {[%clk 0:02:14]}  Nb4 {[%clk 0:01:36]} 27. Rd7 {[%clk 0:01:28]}  Nd3 {[%clk 0:01:31]} 28. Rcc7 {[%clk 0:01:24]}  Rf8 {[%clk 0:01:31]} 29. Rb7 {[%clk 0:01:23]}  Rab8 {[%clk 0:01:28]} 30. Rxf7 {[%clk 0:01:21]}  Rxb7 {[%clk 0:01:20]} 31. Rxb7 {[%clk 0:01:22]}  Rxf2 {[%clk 0:01:18]} 32. Rb3 {[%clk 0:01:05]}  Rd2 {[%clk 0:01:18]} 33. Nf3 {[%clk 0:01:05]}  Rd1+ {[%clk 0:01:16]} 34. Kh2 {[%clk 0:01:05]}  Nb4 {[%clk 0:01:06]} 35. e4 {[%clk 0:01:00]}  Rd3 {[%clk 0:00:59]} 36. Rxd3 {[%clk 0:00:38]}  Nxd3 {[%clk 0:00:58]} 37. b3 {[%clk 0:00:39]}  Nc5 {[%clk 0:00:52]} 38. Nd4 {[%clk 0:00:39]}  Nxe4 {[%clk 0:00:50]} 39. Nc6 {[%clk 0:00:40]}  Kf7 {[%clk 0:00:46]} 40. Nxa5 {[%clk 0:00:40]}  Ke6 {[%clk 0:00:47]} 41. h4 {[%clk 0:00:32]}  Kd6 {[%clk 0:00:46]} 42. Kh3 {[%clk 0:00:32]}  Kc5 {[%clk 0:00:47]} 43. Kg4 {[%clk 0:00:30]}  Kb4 {[%clk 0:00:44]} 44. Nc6+ {[%clk 0:00:30]}  Kxb3 {[%clk 0:00:43]} 45. Kf5 {[%clk 0:00:30]}  Nd6+ {[%clk 0:00:18]} 46. Kg6 {[%clk 0:00:29]}  Kc3 {[%clk 0:00:17]} 1-0


[Site "https://www.chess.com"]

[Event "Titled Tuesday Blitz November 15 Early 2022"]
[White "Tanenbaum, Zachary"]
[Black "Gholami Orimi, Mahdi"]
[WhiteFideId "2060850"]
[BlackFideId "12558486"]
[WhiteElo "2175"]
[BlackElo "2330"]
[Result "0-1"]
[Round "06"]
[TimeControl "180+1"]
[Date "2022.11.16"]
[WhiteClock "0:02:38"]
[BlackClock "0:01:05"]

1. e4 {[%clk 0:03:00]}  c5 {[%clk 0:02:55]} 2. Nf3 {[%clk 0:03:00]}  Nc6 {[%clk 0:01:23]} 3. Nc3 {[%clk 0:03:00]}  g6 {[%clk 0:01:21]} 4. d4 {[%clk 0:03:00]}  cxd4 {[%clk 0:01:22]} 5. Nxd4 {[%clk 0:03:01]}  Bg7 {[%clk 0:01:22]} 6. Be3 {[%clk 0:03:02]}  d6 {[%clk 0:01:22]} 7. f3 {[%clk 0:02:59]}  Bd7 {[%clk 0:01:21]} 8. g4 {[%clk 0:02:56]}  h5 {[%clk 0:01:20]} 9. g5 {[%clk 0:02:54]}  Qa5 {[%clk 0:01:19]} 10. Qd2 {[%clk 0:02:46]}  Nxd4 {[%clk 0:01:05]} 11. Bxd4 {[%clk 0:02:46]}  Bxd4 {[%clk 0:01:06]} 12. Qxd4 {[%clk 0:02:47]}  Qe5 {[%clk 0:01:06]} 13. Qd2 {[%clk 0:02:38]}  h4 {[%clk 0:01:05]} 0-1


[Site "https://www.chess.com"]

[Event "Titled Tuesday Blitz November 15 Early 2022"]
[White "Thorhallsson, Simon"]
[Black "Grigorov, Grigor"]
[WhiteFideId "2310090"]
[BlackFideId "2907313"]
[WhiteElo "2109"]
[BlackElo "2510"]
[Result "0-1"]
[Round "06"]
[TimeControl "180+1"]
[Date "2022.11.16"]
[WhiteClock "0:00:11"]
[BlackClock "0:00:34"]

1. Nf3 {[%clk 0:02:52]}  Nf6 {[%clk 0:02:59]} 2. g3 {[%clk 0:02:51]}  b6 {[%clk 0:02:59]} 3. Bg2 {[%clk 0:02:51]}  Bb7 {[%clk 0:02:59]} 4. O-O {[%clk 0:02:51]}  e6 {[%clk 0:02:59]} 5. d3 {[%clk 0:02:50]}  d5 {[%clk 0:02:59]} 6. Nbd2 {[%clk 0:02:49]}  Nbd7 {[%clk 0:02:59]} 7. e4 {[%clk 0:02:49]}  dxe4 {[%clk 0:02:59]} 8. Ng5 {[%clk 0:02:49]}  Nc5 {[%clk 0:02:58]} 9. Ngxe4 {[%clk 0:02:42]}  Nfxe4 {[%clk 0:02:56]} 10. Nxe4 {[%clk 0:02:38]}  Nxe4 {[%clk 0:02:56]} 11. Bxe4 {[%clk 0:02:33]}  Bxe4 {[%clk 0:02:56]} 12. dxe4 {[%clk 0:02:34]}  Qxd1 {[%clk 0:02:56]} 13. Rxd1 {[%clk 0:02:33]}  Bd6 {[%clk 0:02:57]} 14. Be3 {[%clk 0:02:29]}  f5 {[%clk 0:02:50]} 15. exf5 {[%clk 0:02:24]}  exf5 {[%clk 0:02:50]} 16. Rd5 {[%clk 0:02:24]}  O-O {[%clk 0:02:48]} 17. Rad1 {[%clk 0:02:17]}  Rae8 {[%clk 0:02:43]} 18. a4 {[%clk 0:02:17]}  f4 {[%clk 0:02:43]} 19. gxf4 {[%clk 0:02:09]}  Bxf4 {[%clk 0:02:42]} 20. Bxf4 {[%clk 0:01:59]}  Rxf4 {[%clk 0:02:43]} 21. R5d4 {[%clk 0:01:59]}  Rf7 {[%clk 0:02:34]} 22. Rd7 {[%clk 0:01:54]}  Re1+ {[%clk 0:02:14]} 23. Kg2 {[%clk 0:01:45]}  Rxd1 {[%clk 0:01:54]} 24. Rxd1 {[%clk 0:01:44]}  g6 {[%clk 0:01:49]} 25. Kg3 {[%clk 0:01:34]}  Kg7 {[%clk 0:01:49]} 26. Rd8 {[%clk 0:01:29]}  a5 {[%clk 0:01:47]} 27. Rc8 {[%clk 0:01:26]}  Kf6 {[%clk 0:01:42]} 28. Kf4 {[%clk 0:01:26]}  Ke6+ {[%clk 0:01:42]} 29. Ke4 {[%clk 0:01:17]}  Kd7 {[%clk 0:01:32]} 30. Rh8 {[%clk 0:01:15]}  Kd6 {[%clk 0:01:31]} 31. f4 {[%clk 0:01:08]}  Re7+ {[%clk 0:01:32]} 32. Kd3 {[%clk 0:01:05]}  Kc5 {[%clk 0:01:29]} 33. c3 {[%clk 0:01:01]}  Rd7+ {[%clk 0:01:26]} 34. Kc2 {[%clk 0:00:47]}  Rf7 {[%clk 0:01:26]} 35. Kb3 {[%clk 0:00:41]}  Kd6 {[%clk 0:01:21]} 36. Ka3 {[%clk 0:00:31]}  Kd5 {[%clk 0:01:19]} 37. b4 {[%clk 0:00:27]}  Kc4 {[%clk 0:01:17]} 38. bxa5 {[%clk 0:00:22]}  bxa5 {[%clk 0:01:18]} 39. Ra8 {[%clk 0:00:22]}  Rf5 {[%clk 0:01:17]} 40. Ra7 {[%clk 0:00:20]}  Rc5 {[%clk 0:01:10]} 41. Kb2 {[%clk 0:00:19]}  Kd3 {[%clk 0:01:06]} 42. Ra6 {[%clk 0:00:19]}  Ke4 {[%clk 0:00:57]} 43. Rf6 {[%clk 0:00:16]}  Rh5 {[%clk 0:00:52]} 44. Rc6 {[%clk 0:00:15]}  Rxh2+ {[%clk 0:00:47]} 45. Kb3 {[%clk 0:00:15]}  Kxf4 {[%clk 0:00:46]} 46. Rxc7 {[%clk 0:00:14]}  g5 {[%clk 0:00:47]} 47. Rc5 {[%clk 0:00:14]}  g4 {[%clk 0:00:45]} 48. Rxa5 {[%clk 0:00:14]}  g3 {[%clk 0:00:46]} 49. Ra8 {[%clk 0:00:15]}  Rh5 {[%clk 0:00:44]} 50. Rf8+ {[%clk 0:00:14]}  Rf5 {[%clk 0:00:42]} 51. Rg8 {[%clk 0:00:11]}  Rg5 {[%clk 0:00:40]} 52. Rf8+ {[%clk 0:00:10]}  Ke3 {[%clk 0:00:38]} 53. Rf1 {[%clk 0:00:10]}  g2 {[%clk 0:00:38]} 54. Ra1 {[%clk 0:00:11]}  g1=Q {[%clk 0:00:38]} 55. Rxg1 {[%clk 0:00:10]}  Rxg1 {[%clk 0:00:37]} 56. a5 {[%clk 0:00:11]}  Kd3 {[%clk 0:00:34]} 57. a6 {[%clk 0:00:11]}  Ra1 {[%clk 0:00:34]} 0-1


[Site "https://www.chess.com"]

[Event "Titled Tuesday Blitz November 15 Early 2022"]
[White "Todorovic, Bojan"]
[Black "Garcia Ramos, Daniel"]
[WhiteFideId "917087"]
[BlackFideId "32010311"]
[WhiteElo "2266"]
[BlackElo "2357"]
[Result "0-1"]
[Round "06"]
[TimeControl "180+1"]
[Date "2022.11.16"]
[WhiteClock "0:00:16"]
[BlackClock "0:00:15"]

1. d4 {[%clk 0:02:59]}  d5 {[%clk 0:02:58]} 2. c4 {[%clk 0:02:58]}  e6 {[%clk 0:02:57]} 3. Nf3 {[%clk 0:02:58]}  Nf6 {[%clk 0:02:57]} 4. g3 {[%clk 0:02:58]}  Bb4+ {[%clk 0:02:56]} 5. Bd2 {[%clk 0:02:56]}  Be7 {[%clk 0:02:56]} 6. Bg2 {[%clk 0:02:53]}  O-O {[%clk 0:02:57]} 7. O-O {[%clk 0:02:52]}  c6 {[%clk 0:02:57]} 8. Qc2 {[%clk 0:02:52]}  Nbd7 {[%clk 0:02:56]} 9. Bf4 {[%clk 0:02:50]}  c5 {[%clk 0:02:49]} 10. dxc5 {[%clk 0:02:36]}  Nxc5 {[%clk 0:02:44]} 11. Rd1 {[%clk 0:02:32]}  Bd7 {[%clk 0:02:36]} 12. Ne5 {[%clk 0:02:26]}  Rc8 {[%clk 0:02:31]} 13. Nc3 {[%clk 0:02:16]}  dxc4 {[%clk 0:02:15]} 14. Nxc4 {[%clk 0:02:12]}  Na4 {[%clk 0:01:41]} 15. Nxa4 {[%clk 0:02:01]}  b5 {[%clk 0:01:41]} 16. Bb7 {[%clk 0:01:57]}  Rxc4 {[%clk 0:01:39]} 17. Nc3 {[%clk 0:01:45]}  b4 {[%clk 0:01:31]} 18. Qb3 {[%clk 0:01:07]}  Rxf4 {[%clk 0:01:30]} 19. gxf4 {[%clk 0:01:08]}  bxc3 {[%clk 0:01:31]} 20. Qxc3 {[%clk 0:01:05]}  Qb8 {[%clk 0:01:26]} 21. Qf3 {[%clk 0:01:00]}  Bb5 {[%clk 0:00:55]} 22. e3 {[%clk 0:01:00]}  Be2 {[%clk 0:00:40]} 23. Qxe2 {[%clk 0:01:00]}  Qxb7 {[%clk 0:00:40]} 24. Rac1 {[%clk 0:00:55]}  g6 {[%clk 0:00:39]} 25. b3 {[%clk 0:00:53]}  Nd5 {[%clk 0:00:39]} 26. Rc4 {[%clk 0:00:51]}  Bf6 {[%clk 0:00:39]} 27. Qf3 {[%clk 0:00:37]}  Qb6 {[%clk 0:00:29]} 28. Kg2 {[%clk 0:00:32]}  Kg7 {[%clk 0:00:28]} 29. Qe4 {[%clk 0:00:29]}  Nc3 {[%clk 0:00:25]} 30. Rxc3 {[%clk 0:00:25]}  Bxc3 {[%clk 0:00:26]} 31. Rd7 {[%clk 0:00:25]}  Bf6 {[%clk 0:00:24]} 32. Rb7 {[%clk 0:00:25]}  Qa6 {[%clk 0:00:22]} 33. a4 {[%clk 0:00:25]}  h5 {[%clk 0:00:22]} 34. h3 {[%clk 0:00:25]}  Rd8 {[%clk 0:00:20]} 35. Qb4 {[%clk 0:00:20]}  Rd1 {[%clk 0:00:18]} 36. Qb5 {[%clk 0:00:19]}  Qxb5 {[%clk 0:00:17]} 37. Rxb5 {[%clk 0:00:19]}  Bc3 {[%clk 0:00:14]} 38. Kf3 {[%clk 0:00:19]}  a5 {[%clk 0:00:14]} 39. Kg2 {[%clk 0:00:17]}  Bb4 {[%clk 0:00:14]} 40. Rb7 {[%clk 0:00:16]}  Rd3 {[%clk 0:00:14]} 41. Kf3 {[%clk 0:00:15]}  Rxb3 {[%clk 0:00:14]} 42. Ke4 {[%clk 0:00:15]}  Ra3 {[%clk 0:00:15]} 43. Ke5 {[%clk 0:00:16]}  Rxa4 {[%clk 0:00:15]} 44. e4 {[%clk 0:00:16]}  Bc3+ {[%clk 0:00:15]} 45. Kd6 {[%clk 0:00:15]}  Rxe4 {[%clk 0:00:16]} 46. Ke7 {[%clk 0:00:16]}  Rxf4 {[%clk 0:00:15]} 0-1


[Site "https://www.chess.com"]

[Event "Titled Tuesday Blitz November 15 Early 2022"]
[White "Tristan, Leonardo"]
[Black "Tymrakiewicz, Rafal"]
[WhiteFideId "113816"]
[BlackFideId "1108832"]
[WhiteElo "2461"]
[BlackElo "2138"]
[Result "1-0"]
[Round "06"]
[TimeControl "180+1"]
[Date "2022.11.16"]
[WhiteClock "0:01:43"]
[BlackClock "0:00:06"]

1. d4 {[%clk 0:03:00]}  Nf6 {[%clk 0:02:59]} 2. Nf3 {[%clk 0:03:01]}  d6 {[%clk 0:02:59]} 3. Bf4 {[%clk 0:02:57]}  Nbd7 {[%clk 0:02:48]} 4. h3 {[%clk 0:02:54]}  g6 {[%clk 0:02:47]} 5. e3 {[%clk 0:02:54]}  Bg7 {[%clk 0:02:48]} 6. Be2 {[%clk 0:02:54]}  O-O {[%clk 0:02:47]} 7. O-O {[%clk 0:02:54]}  e6 {[%clk 0:02:48]} 8. c4 {[%clk 0:02:52]}  Qe7 {[%clk 0:02:48]} 9. Nc3 {[%clk 0:02:52]}  e5 {[%clk 0:02:45]} 10. Bh2 {[%clk 0:02:52]}  c6 {[%clk 0:02:45]} 11. b4 {[%clk 0:02:50]}  Ne8 {[%clk 0:02:39]} 12. c5 {[%clk 0:02:35]}  d5 {[%clk 0:02:34]} 13. a4 {[%clk 0:02:34]}  f5 {[%clk 0:02:19]} 14. b5 {[%clk 0:02:34]}  g5 {[%clk 0:02:06]} 15. a5 {[%clk 0:02:10]}  a6 {[%clk 0:01:54]} 16. bxc6 {[%clk 0:02:11]}  bxc6 {[%clk 0:01:55]} 17. Na4 {[%clk 0:02:11]}  e4 {[%clk 0:01:43]} 18. Nd2 {[%clk 0:02:03]}  f4 {[%clk 0:01:36]} 19. Bg4 {[%clk 0:02:02]}  h5 {[%clk 0:01:11]} 20. Bxh5 {[%clk 0:01:58]}  Ndf6 {[%clk 0:01:11]} 21. Bg6 {[%clk 0:01:52]}  f3 {[%clk 0:00:18]} 22. Nb6 {[%clk 0:01:52]}  fxg2 {[%clk 0:00:14]} 23. Kxg2 {[%clk 0:01:53]}  Qe6 {[%clk 0:00:10]} 24. Nxc8 {[%clk 0:01:53]}  Rxc8 {[%clk 0:00:10]} 25. Bh5 {[%clk 0:01:48]}  Bh6 {[%clk 0:00:10]} 26. Bg4 {[%clk 0:01:48]}  Nxg4 {[%clk 0:00:10]} 27. Qxg4 {[%clk 0:01:48]}  Qxg4+ {[%clk 0:00:10]} 28. hxg4 {[%clk 0:01:49]}  Nc7 {[%clk 0:00:06]} 29. Bxc7 {[%clk 0:01:47]}  Rxc7 {[%clk 0:00:07]} 30. Rab1 {[%clk 0:01:48]}  Rcf7 {[%clk 0:00:07]} 31. Rb6 {[%clk 0:01:48]}  Rf6 {[%clk 0:00:08]} 32. Rxa6 {[%clk 0:01:48]}  Bg7 {[%clk 0:00:07]} 33. Rb6 {[%clk 0:01:48]}  Re6 {[%clk 0:00:05]} 34. a6 {[%clk 0:01:48]}  Ra8 {[%clk 0:00:04]} 35. Ra1 {[%clk 0:01:46]}  Re7 {[%clk 0:00:05]} 36. Rb7 {[%clk 0:01:45]}  Rxb7 {[%clk 0:00:05]} 37. axb7 {[%clk 0:01:46]}  Rxa1 {[%clk 0:00:05]} 38. b8=Q+ {[%clk 0:01:46]}  Kh7 {[%clk 0:00:06]} 39. Nf1 {[%clk 0:01:43]} 1-0


[Site "https://www.chess.com"]

[Event "Titled Tuesday Blitz November 15 Early 2022"]
[White "Valle Maytin, Luis Enrique"]
[Black "Garv Gaur"]
[WhiteFideId "3503666"]
[BlackFideId "45030839"]
[WhiteElo "2225"]
[BlackElo "1960"]
[Result "1-0"]
[Round "06"]
[TimeControl "180+1"]
[Date "2022.11.16"]
[WhiteClock "0:00:42"]
[BlackClock "0:00:39"]

1. e4 {[%clk 0:02:59]}  c6 {[%clk 0:03:00]} 2. d4 {[%clk 0:02:57]}  d5 {[%clk 0:03:00]} 3. e5 {[%clk 0:02:58]}  Bf5 {[%clk 0:03:00]} 4. g4 {[%clk 0:02:58]}  Be4 {[%clk 0:03:00]} 5. f3 {[%clk 0:02:58]}  Bg6 {[%clk 0:03:01]} 6. e6 {[%clk 0:02:59]}  fxe6 {[%clk 0:03:00]} 7. h4 {[%clk 0:02:58]}  Qd6 {[%clk 0:02:57]} 8. Ne2 {[%clk 0:02:43]}  Nd7 {[%clk 0:02:55]} 9. h5 {[%clk 0:02:42]}  Bf7 {[%clk 0:02:54]} 10. f4 {[%clk 0:02:41]}  g5 {[%clk 0:02:48]} 11. Qd3 {[%clk 0:02:21]}  gxf4 {[%clk 0:02:39]} 12. Bxf4 {[%clk 0:02:22]}  e5 {[%clk 0:02:40]} 13. dxe5 {[%clk 0:02:21]}  Nxe5 {[%clk 0:02:41]} 14. Qg3 {[%clk 0:02:01]}  Bg7 {[%clk 0:02:30]} 15. h6 {[%clk 0:01:58]}  Nxh6 {[%clk 0:02:26]} 16. Rxh6 {[%clk 0:01:58]}  Bxh6 {[%clk 0:02:25]} 17. Bxe5 {[%clk 0:01:57]}  Qb4+ {[%clk 0:02:24]} 18. Bc3 {[%clk 0:01:57]}  Qe4 {[%clk 0:02:16]} 19. Bxh8 {[%clk 0:01:55]}  Qxc2 {[%clk 0:02:12]} 20. Bc3 {[%clk 0:01:40]}  O-O-O {[%clk 0:02:09]} 21. Na3 {[%clk 0:01:40]}  Qa4 {[%clk 0:01:59]} 22. g5 {[%clk 0:01:33]}  Bf8 {[%clk 0:01:38]} 23. Qf4 {[%clk 0:01:25]}  Qxf4 {[%clk 0:01:13]} 24. Nxf4 {[%clk 0:01:25]}  e5 {[%clk 0:01:11]} 25. Bh3+ {[%clk 0:01:18]}  Kc7 {[%clk 0:01:09]} 26. Bxe5+ {[%clk 0:01:18]}  Kb6 {[%clk 0:01:08]} 27. Bd4+ {[%clk 0:01:15]}  c5 {[%clk 0:01:08]} 28. Bf2 {[%clk 0:01:14]}  Re8+ {[%clk 0:01:08]} 29. Kf1 {[%clk 0:01:14]}  d4 {[%clk 0:01:08]} 30. b3 {[%clk 0:00:59]}  Bd6 {[%clk 0:01:05]} 31. Nd3 {[%clk 0:00:49]}  Kc7 {[%clk 0:00:59]} 32. Nb5+ {[%clk 0:00:49]}  Kc6 {[%clk 0:00:56]} 33. Nxd6 {[%clk 0:00:50]}  Kxd6 {[%clk 0:00:57]} 34. Bg3+ {[%clk 0:00:49]}  Kc6 {[%clk 0:00:52]} 35. Bg2+ {[%clk 0:00:49]}  Kb6 {[%clk 0:00:52]} 36. Re1 {[%clk 0:00:45]}  Rf8 {[%clk 0:00:52]} 37. Kg1 {[%clk 0:00:44]}  Bg6 {[%clk 0:00:40]} 38. Bd6 {[%clk 0:00:43]}  Bxd3 {[%clk 0:00:39]} 39. Bxf8 {[%clk 0:00:42]} 1-0


[Site "https://www.chess.com"]

[Event "Titled Tuesday Blitz November 15 Early 2022"]
[White "Vargas, Mauricio"]
[Black "Manon-og, Ramon Jr."]
[WhiteFideId "4404572"]
[BlackFideId "5200776"]
[WhiteElo "2025"]
[BlackElo "2303"]
[Result "0-1"]
[Round "06"]
[TimeControl "180+1"]
[Date "2022.11.16"]
[WhiteClock "0:00:03"]
[BlackClock "0:00:35"]

1. e4 {[%clk 0:02:59]}  c5 {[%clk 0:03:00]} 2. Nc3 {[%clk 0:02:58]}  d6 {[%clk 0:03:00]} 3. f4 {[%clk 0:02:58]}  g6 {[%clk 0:03:00]} 4. Nf3 {[%clk 0:02:30]}  Bg7 {[%clk 0:02:56]} 5. Bc4 {[%clk 0:02:30]}  e6 {[%clk 0:02:56]} 6. O-O {[%clk 0:02:30]}  Ne7 {[%clk 0:02:57]} 7. a4 {[%clk 0:02:30]}  O-O {[%clk 0:02:57]} 8. d3 {[%clk 0:02:29]}  Nbc6 {[%clk 0:02:57]} 9. Qe1 {[%clk 0:02:29]}  d5 {[%clk 0:02:53]} 10. Bb5 {[%clk 0:02:27]}  Nd4 {[%clk 0:02:45]} 11. Nxd4 {[%clk 0:02:17]}  cxd4 {[%clk 0:02:37]} 12. Ne2 {[%clk 0:01:48]}  a6 {[%clk 0:02:36]} 13. exd5 {[%clk 0:01:34]}  axb5 {[%clk 0:02:36]} 14. dxe6 {[%clk 0:01:34]}  Bxe6 {[%clk 0:02:36]} 15. a5 {[%clk 0:01:32]}  Nf5 {[%clk 0:02:25]} 16. Qb4 {[%clk 0:01:30]}  Ne3 {[%clk 0:02:22]} 17. Bxe3 {[%clk 0:01:24]}  dxe3 {[%clk 0:02:22]} 18. Qxb5 {[%clk 0:01:23]}  Qd5 {[%clk 0:01:35]} 19. Qxd5 {[%clk 0:01:14]}  Bxd5 {[%clk 0:01:36]} 20. c3 {[%clk 0:01:09]}  Rfc8 {[%clk 0:01:25]} 21. d4 {[%clk 0:01:05]}  Bc4 {[%clk 0:01:24]} 22. Rfe1 {[%clk 0:01:04]}  Bh6 {[%clk 0:00:57]} 23. g3 {[%clk 0:01:03]}  g5 {[%clk 0:00:58]} 24. fxg5 {[%clk 0:00:54]}  Bxg5 {[%clk 0:00:59]} 25. Kg2 {[%clk 0:00:54]}  Ra6 {[%clk 0:00:56]} 26. Nf4 {[%clk 0:00:38]}  Bxf4 {[%clk 0:00:55]} 27. gxf4 {[%clk 0:00:39]}  e2 {[%clk 0:00:55]} 28. Kf2 {[%clk 0:00:37]}  Rcc6 {[%clk 0:00:49]} 29. Ra3 {[%clk 0:00:35]}  Rh6 {[%clk 0:00:47]} 30. Rh1 {[%clk 0:00:27]}  Bd5 {[%clk 0:00:43]} 31. Re1 {[%clk 0:00:18]}  Rxh2+ {[%clk 0:00:43]} 32. Ke3 {[%clk 0:00:16]}  Re6+ {[%clk 0:00:41]} 33. Kd2 {[%clk 0:00:16]}  Bf3 {[%clk 0:00:37]} 34. b3 {[%clk 0:00:16]}  Rh1 {[%clk 0:00:38]} 35. Raa1 {[%clk 0:00:13]}  Rxe1 {[%clk 0:00:37]} 36. Rxe1 {[%clk 0:00:13]}  h5 {[%clk 0:00:38]} 37. d5 {[%clk 0:00:11]}  Bxd5 {[%clk 0:00:38]} 38. c4 {[%clk 0:00:11]}  Bf3 {[%clk 0:00:38]} 39. b4 {[%clk 0:00:08]}  h4 {[%clk 0:00:36]} 40. Rh1 {[%clk 0:00:05]}  Bxh1 {[%clk 0:00:36]} 41. Ke1 {[%clk 0:00:04]}  Bf3 {[%clk 0:00:35]} 42. Kf2 {[%clk 0:00:02]}  e1=Q+ {[%clk 0:00:34]} 43. Kxf3 {[%clk 0:00:03]}  Qg3# {[%clk 0:00:35]} 0-1


[Site "https://www.chess.com"]

[Event "Titled Tuesday Blitz November 15 Early 2022"]
[White "Vasques, Antonio Pedro Freixial"]
[Black "Volkov, Maksim"]
[WhiteFideId "1908332"]
[BlackFideId "54123070"]
[WhiteElo "2243"]
[BlackElo "2257"]
[Result "0-1"]
[Round "06"]
[TimeControl "180+1"]
[Date "2022.11.16"]
[WhiteClock "0:01:04"]
[BlackClock "0:01:29"]

1. e4 {[%clk 0:02:57]}  c5 {[%clk 0:02:59]} 2. Nc3 {[%clk 0:02:53]}  d6 {[%clk 0:02:55]} 3. Nf3 {[%clk 0:02:51]}  Nf6 {[%clk 0:02:54]} 4. d4 {[%clk 0:02:50]}  cxd4 {[%clk 0:02:53]} 5. Nxd4 {[%clk 0:02:51]}  a6 {[%clk 0:02:53]} 6. Be3 {[%clk 0:02:52]}  e5 {[%clk 0:02:53]} 7. Nb3 {[%clk 0:02:51]}  Be7 {[%clk 0:02:53]} 8. f3 {[%clk 0:02:51]}  Be6 {[%clk 0:02:52]} 9. Qd2 {[%clk 0:02:51]}  h5 {[%clk 0:02:52]} 10. O-O-O {[%clk 0:02:50]}  Nbd7 {[%clk 0:02:52]} 11. Kb1 {[%clk 0:02:48]}  Rc8 {[%clk 0:02:51]} 12. h3 {[%clk 0:02:48]}  b5 {[%clk 0:02:49]} 13. Rg1 {[%clk 0:02:16]}  b4 {[%clk 0:02:29]} 14. Na4 {[%clk 0:02:14]}  a5 {[%clk 0:02:27]} 15. g4 {[%clk 0:02:11]}  hxg4 {[%clk 0:02:26]} 16. hxg4 {[%clk 0:02:11]}  g6 {[%clk 0:01:59]} 17. Ba6 {[%clk 0:01:52]}  Rb8 {[%clk 0:01:52]} 18. Rh1 {[%clk 0:01:41]}  Rg8 {[%clk 0:01:38]} 19. Qe2 {[%clk 0:01:12]}  Qc7 {[%clk 0:01:36]} 20. g5 {[%clk 0:01:02]}  Nh5 {[%clk 0:01:35]} 21. Rxh5 {[%clk 0:01:03]}  gxh5 {[%clk 0:01:35]} 22. f4 {[%clk 0:01:04]}  exf4 {[%clk 0:01:30]} 23. Bxf4 {[%clk 0:01:04]}  Bg4 {[%clk 0:01:29]} 0-1


[Site "https://www.chess.com"]